[Event "XX Gran Hotel Bali-A 2023"]
[Site "Benidorm"]
[Date "2023.12.06"]
[Round "7.12"]
[White "Azaryan, Tigran"]
[Black "Luque Saiz, Andres"]
[Result "1/2-1/2"]
[ECO "C41"]
[WhiteElo "2115"]
[BlackElo "2349"]
[Annotator "ChessBase"]
[PlyCount "80"]
[EventDate "2023.12.02"]
[EventType "swiss"]
[EventCountry "ESP"]
[SourceTitle "playchess.com"]
[Source "ChessBase"]
[SourceQuality "1"]
[TimeControl "5400+30"]

1. e4 {[%emt 0:02:29]} d6 {[%emt 0:00:45]} 2. d4 {[%emt 0:00:06]} Nf6 {[%emt 0:00:05]} 3. Nc3 {[%emt 0:00:08]} e5 {[%emt 0:00:11]} 4. Nf3 {[%emt 0:00:24]} Nbd7 {[%emt 0:00:09]} 5. Bc4 {[%emt 0:01:09]} Be7 {[%emt 0:00:13]} 6. O-O {[%emt 0:02:14]} O-O {[%emt 0:00:11]} 7. h3 {[%emt 0:01:53]} exd4 {[%emt 0:09:24]} 8. Nxd4 {[%emt 0:00:16]} Re8 {[%emt 0:05:24]} 9. f4 {[%emt 0:06:51]} Bf8 {[%emt 0:03:39]} 10. Qf3 {[%emt 0:07:56]} c6 {[%emt 0:17:56]} 11. Kh1 {[%emt 0:21:06]} d5 {[%emt 0:08:50]} 12. exd5 {[%emt 0:01:39]} Nb6 {[%emt 0:00:10]} 13. Bb3 {[%emt 0:01:12]} c5 {[%emt 0:14:54]} 14. Nde2 {[%emt 0:01:42]} c4 {[%emt 0:01:08]} 15. Ba4 {[%emt 0:00:04]} Nxa4 {[%emt 0:00:13]} 16. Nxa4 {[%emt 0:00:08]} Qxd5 {[%emt 0:00:14]} 17. Qxd5 {[%emt 0:01:28]} Nxd5 {[%emt 0:00:03]} 18. Nd4 {[%emt 0:02:37]} Bd7 {[%emt 0:12:25]} 19. Nc3 {[%emt 0:00:26]} Nb4 {[%emt 0:01:23]} 20. a3 {[%emt 0:00:52]} Nc6 {[%emt 0:00:41]} 21. Ndb5 {[%emt 0:10:19]} Rac8 {[%emt 0:02:42]} 22. Nd5 {[%emt 0:00:55]} Bc5 {[%emt 0:10:24]} 23. b4 {[%emt 0:04:58]} cxb3 {[%emt 0:00:29]} 24. cxb3 {[%emt 0:00:01]} Ne7 {[%emt 0:06:11]} 25. Ndc7 {[%emt 0:26:31]} Nf5 {[%emt 0:01:18]} 26. Rd1 {[%emt 0:00:41]} Red8 {[%emt 0:00:20]} 27. Bd2 {[%emt 0:01:51]} a6 {[%emt 0:02:09]} 28. Rac1 {[%emt 0:00:17]} b6 {[%emt 0:00:46]} 29. b4 {[%emt 0:01:35]} axb5 {[%emt 0:00:42]} 30. bxc5 {[%emt 0:00:01]} Rxc7 {[%emt 0:01:12]} 31. cxb6 {[%emt 0:00:01]} Rxc1 {[%emt 0:00:30]} 32. Bxc1 {[%emt 0:00:23]} Kf8 {[%emt 0:00:48]} 33. Bb2 {[%emt 0:01:22]} Ne7 {[%emt 0:00:55]} 34. Be5 {[%emt 0:00:15]} Nc6 {[%emt 0:00:31]} 35. Bc7 {[%emt 0:00:11]} Ke8 {[%emt 0:00:21]} 36. Re1+ {[%emt 0:00:00]} Kf8 {[%emt 0:00:34]} 37. b7 {[%emt 0:00:01]} Re8 {[%emt 0:00:30]} 38. Bd6+ {[%emt 0:01:01]} Kg8 {[%emt 0:00:05]} 39. Rxe8+ {[%emt 0:00:43]} Bxe8 {[%emt 0:00:03]} 40. b8=Q {[%emt 0:00:07]} Nxb8 {[%emt 0:00:02]} 1/2-1/2

[Event "XX Gran Hotel Bali-A 2023"]
[Site "Benidorm"]
[Date "2023.12.06"]
[Round "7.13"]
[White "Robledo Sanchez, Carlos"]
[Black "Goluch, Piotr"]
[Result "0-1"]
[ECO "A13"]
[WhiteElo "2117"]
[BlackElo "2309"]
[Annotator "RC"]
[PlyCount "62"]
[EventDate "2023.12.02"]
[EventType "swiss"]
[EventCountry "ESP"]
[SourceTitle "playchess.com"]
[Source "ChessBase"]
[SourceQuality "1"]
[TimeControl "5400+30"]

1. c4 {[%emt 0:00:16]} e6 {[%emt 0:01:08]} 2. Nf3 {[%emt 0:00:18]} d5 {[%emt 0:00:09]} 3. e3 {[%emt 0:00:07]} Nf6 {[%emt 0:01:02]} 4. b3 {[%emt 0:00:19]} c5 {[%emt 0:00:47]} 5. Bb2 {[%emt 0:00:42]} Nc6 {[%emt 0:00:13]} 6. cxd5 {[%emt 0:00:38]} exd5 {[%emt 0:00:44]} 7. Bb5 {[%emt 0:00:22]} Bd6 {[%emt 0:01:07]} 8. O-O {[%emt 0:00:17]} O-O {[%emt 0:03:42]} 9. d4 {[%emt 0:00:26]} cxd4 {[%emt 0:00:06]} 10. Nxd4 {[%emt 0:00:03]} Bd7 {[%emt 0:00:05]} 11. Nc3 {[%emt 0:07:26]} Rc8 {[%emt 0:01:37]} 12. Rc1 {[%emt 0:01:19]} Re8 {[%emt 0:06:19]} 13. Nf3 {[%emt 0:31:16]} Bg4 {[%emt 0:02:40]} 14. Bxc6 {[%emt 0:04:29]} bxc6 {[%emt 0:02:41]} 15. Ne2 {[%emt 0:00:21]} Bxf3 {[%emt 0:02:51]} 16. gxf3 {[%emt 0:00:09]} Nd7 {[%emt 0:00:54]} 17. f4 {[%emt 0:02:02]} Bf8 {[%emt 0:13:38]} 18. Ng3 {[%emt 0:11:37]} Re6 {[%emt 0:03:53]} 19. Qf3 {[%emt 0:01:56]} Qa5 {[%emt 0:02:02]} 20. a3 {[%emt 0:02:16]} Qb5 {[%emt 0:01:51]} 21. b4 {[%emt 0:03:06]} a5 {[%emt 0:00:04]} 22. Qg4 {[%emt 0:01:36]} Rce8 {[%emt 0:04:27]} 23. f5 {[%emt 0:05:22]} Rh6 {[%emt 0:00:12]} 24. Nh5 {[%emt 0:02:32]} Re4 {[%emt 0:10:21]} 25. f4 {[%emt 0:10:15]} g6 {[%emt 0:12:56]} 26. Ng3 {[%emt 0:00:30]} Rxe3 {[%emt 0:00:04]} 27. fxg6 {[%emt 0:00:23]} Rxg6 {[%emt 0:00:04]} 28. Qxd7 {[%emt 0:07:58]} Qe2 {[%emt 0:00:05]} 29. Kh1 {[%emt 0:00:18]} Rexg3 {[%emt 0:00:23]} 30. hxg3 {[%emt 0:00:40]} Rh6+ {[%emt 0:00:04]} 31. Kg1 {[%emt 0:00:03]} Qh2# {[%emt 0:00:03]} 0-1

[Event "XX Gran Hotel Bali-A 2023"]
[Site "Benidorm"]
[Date "2023.12.06"]
[Round "7.14"]
[White "Nurgali, Nazerke"]
[Black "Salvador Buiza, Victor"]
[Result "0-1"]
[ECO "E10"]
[WhiteElo "2222"]
[BlackElo "2112"]
[Annotator "RC"]
[PlyCount "46"]
[EventDate "2023.12.02"]
[EventType "swiss"]
[EventCountry "ESP"]
[SourceTitle "playchess.com"]
[Source "ChessBase"]
[SourceQuality "1"]
[TimeControl "5400+30"]

1. d4 {[%emt 0:00:03]} Nf6 {[%emt 0:01:34]} 2. Nf3 {[%emt 0:00:28]} e6 {[%emt 0:00:32]} 3. c4 {[%emt 0:00:21]} c5 {[%emt 0:00:23]} 4. d5 {[%emt 0:00:40]} b5 {[%emt 0:00:04]} 5. dxe6 {[%emt 0:01:45]} fxe6 {[%emt 0:00:24]} 6. cxb5 {[%emt 0:00:44]} d5 {[%emt 0:00:05]} 7. e3 {[%emt 0:00:29]} Nbd7 {[%emt 0:02:22]} 8. Nbd2 {[%emt 0:03:41]} Bb7 {[%emt 0:05:05]} 9. Qc2 {[%emt 0:07:44]} Bd6 {[%emt 0:06:15]} 10. b3 {[%emt 0:02:10]} O-O {[%emt 0:08:27]} 11. Bd3 {[%emt 0:01:59]} Qe8 {[%emt 0:06:18]} 12. Bb2 {[%emt 0:05:33]} Qh5 {[%emt 0:13:01]} 13. Be2 {[%emt 0:02:57]} Ng4 {[%emt 0:05:00]} 14. h3 {[%emt 0:05:58]} Qh6 {[%emt 0:04:58]} 15. O-O {[%emt 0:05:02]} d4 {[%emt 0:03:57]} 16. e4 {[%emt 0:09:06]} Nde5 {[%emt 0:07:57]} 17. Nxe5 {[%emt 0:05:42]} Nxe5 {[%emt 0:00:25]} 18. Bc1 {[%emt 0:06:06]} Qh4 {[%emt 0:04:12]} 19. Bd3 {[%emt 0:03:41]} Rf6 {[%emt 0:13:11]} 20. f4 {[%emt 0:04:17]} Rxf4 {[%emt 0:03:29]} 21. Rxf4 {[%emt 0:00:36]} Qxf4 {[%emt 0:00:02]} 22. Nc4 {[%emt 0:01:48]} Qg3 {[%emt 0:00:11]} 23. Be2 {[%emt 0:19:16]} Nf3+ {[%emt 0:14:08]} 0-1

[Event "XX Gran Hotel Bali-A 2023"]
[Site "Benidorm"]
[Date "2023.12.06"]
[Round "7.15"]
[White "Alvarez Perez, Adan"]
[Black "Ereza Vizcarra, Fernando"]
[Result "0-1"]
[ECO "C41"]
[WhiteElo "2241"]
[BlackElo "2116"]
[Annotator "ChessBase"]
[PlyCount "92"]
[EventDate "2023.12.02"]
[EventType "swiss"]
[EventCountry "ESP"]
[SourceTitle "playchess.com"]
[Source "ChessBase"]
[SourceQuality "1"]
[TimeControl "5400+30"]

1. e4 {[%emt 0:00:03]} d6 {[%emt 0:02:40]} 2. Nc3 {[%emt 0:01:07]} Nf6 {[%emt 0:00:20]} 3. Nf3 {[%emt 0:01:22]} e5 {[%emt 0:00:05]} 4. d4 {[%emt 0:00:57]} Nbd7 {[%emt 0:00:04]} 5. a4 {[%emt 0:01:32]} Be7 {[%emt 0:00:04]} 6. Bc4 {[%emt 0:02:27]} O-O {[%emt 0:00:05]} 7. h3 {[%emt 0:02:36]} c6 {[%emt 0:00:05]} 8. O-O {[%emt 0:01:06]} b6 {[%emt 0:00:02]} 9. Qe2 {[%emt 0:08:18]} a6 {[%emt 0:04:05]} 10. Rd1 {[%emt 0:01:36]} Qc7 {[%emt 0:00:01]} 11. Nh4 {[%emt 0:15:58]} exd4 {[%emt 0:09:51]} 12. Rxd4 {[%emt 0:04:34]} Ne5 {[%emt 0:00:04]} 13. Bb3 {[%emt 0:03:38]} Re8 {[%emt 0:05:35]} 14. Rd1 {[%emt 0:08:01]} Bf8 {[%emt 0:04:56]} 15. Bf4 {[%emt 0:03:49]} Rb8 {[%emt 0:02:58]} 16. Bh2 {[%emt 0:04:43]} b5 {[%emt 0:02:42]} 17. axb5 {[%emt 0:03:05]} axb5 {[%emt 0:00:01]} 18. f4 {[%emt 0:03:30]} Ned7 {[%emt 0:07:06]} 19. Nf3 {[%emt 0:05:24]} b4 {[%emt 0:08:59]} 20. Bxf7+ {[%emt 0:02:18]} Kxf7 {[%emt 0:00:04]} 21. Qc4+ {[%emt 0:00:05]} d5 {[%emt 0:01:00]} 22. Ng5+ {[%emt 0:10:21]} Kg8 {[%emt 0:00:12]} 23. exd5 {[%emt 0:02:08]} Qb6+ {[%emt 0:03:53]} 24. Kh1 {[%emt 0:01:06]} Qc5 {[%emt 0:00:03]} 25. Qa2 {[%emt 0:00:01]} b3 {[%emt 0:00:18]} 26. cxb3 {[%emt 0:00:09]} cxd5 {[%emt 0:00:05]} 27. Nxd5 {[%emt 0:02:11]} Nxd5 {[%emt 0:08:28]} 28. b4 {[%emt 0:00:00]} Rxb4 {[%emt 0:00:05]} 29. Rac1 {[%emt 0:01:04]} Qb5 {[%emt 0:07:09]} 30. Rxd5 {[%emt 0:04:15]} Qa4 {[%emt 0:00:35]} 31. Qb1 {[%emt 0:02:38]} Nf6 {[%emt 0:00:15]} 32. Re5 {[%emt 0:01:19]} Rd8 {[%emt 0:00:51]} 33. Rce1 {[%emt 0:00:54]} h6 {[%emt 0:01:25]} 34. Ne6 {[%emt 0:00:54]} Bxe6 {[%emt 0:00:44]} 35. Rxe6 {[%emt 0:00:01]} Rbd4 {[%emt 0:01:51]} 36. b3 {[%emt 0:01:19]} Qd7 {[%emt 0:00:29]} 37. Qc2 {[%emt 0:00:50]} Qd5 {[%emt 0:00:52]} 38. R6e5 {[%emt 0:00:16]} Qf7 {[%emt 0:00:18]} 39. Re6 {[%emt 0:01:42]} Nd5 {[%emt 0:02:45]} 40. f5 {[%emt 0:03:13]} Nf4 {[%emt 0:29:25]} 41. R6e4 {[%emt 0:00:30]} Rd2 {[%emt 0:00:30]} 42. Qc4 {[%emt 0:00:30]} Nd3 {[%emt 0:00:30]} 43. R1e2 {[%emt 0:00:30]} Nf2+ {[%emt 0:00:30]} 44. Rxf2 {[%emt 0:00:30]} Qxc4 {[%emt 0:00:00]} 45. bxc4 {[%emt 0:00:00]} Rxf2 {[%emt 0:00:00]} 46. Bg1 {[%emt 0:00:00]} Rd1 {[%emt 0:00:00]} 0-1

[Event "XX Gran Hotel Bali-A 2023"]
[Site "Benidorm"]
[Date "2023.12.06"]
[Round "7.16"]
[White "Munoz Avila, Jose Luis"]
[Black "Potawad Anirudhha"]
[Result "1-0"]
[ECO "E01"]
[WhiteElo "2238"]
[BlackElo "2075"]
[Annotator "RC"]
[PlyCount "117"]
[EventDate "2023.12.02"]
[EventType "swiss"]
[EventCountry "ESP"]
[SourceTitle "playchess.com"]
[Source "ChessBase"]
[SourceQuality "1"]
[TimeControl "5400+30"]

1. d4 {[%emt 0:00:38]} d5 {[%emt 0:00:03]} 2. Nf3 {[%emt 0:00:10]} Nf6 {[%emt 0:00:04]} 3. c4 {[%emt 0:00:16]} c6 {[%emt 0:03:12]} 4. Qc2 {[%emt 0:00:16]} e6 {[%emt 0:01:12]} 5. g3 {[%emt 0:00:30]} Nbd7 {[%emt 0:00:33]} 6. Bg2 {[%emt 0:00:17]} Bd6 {[%emt 0:02:51]} 7. O-O {[%emt 0:00:57]} O-O {[%emt 0:03:54]} 8. Nbd2 {[%emt 0:06:56]} Re8 {[%emt 0:06:51]} 9. b3 {[%emt 0:15:19]} e5 {[%emt 0:07:37]} 10. cxd5 cxd5 {[%emt 0:13:23]} 11. dxe5 {[%emt 0:04:53]} Nxe5 {[%emt 0:00:03]} 12. Bb2 {[%emt 0:00:28]} Nc6 {[%emt 0:05:11]} 13. e3 {[%emt 0:06:22]} Bd7 {[%emt 0:12:27]} 14. a3 {[%emt 0:13:26]} Ne4 {[%emt 0:02:16]} 15. Rad1 {[%emt 0:05:56]} Qe7 {[%emt 0:09:01]} 16. Qc1 {[%emt 0:02:32]} Rac8 {[%emt 0:02:18]} 17. Qa1 {[%emt 0:00:55]} f6 {[%emt 0:01:44]} 18. Rfe1 {[%emt 0:08:54]} Bg4 {[%emt 0:08:34]} 19. Rc1 {[%emt 0:06:41]} Qf7 {[%emt 0:02:59]} 20. b4 {[%emt 0:02:58]} a6 {[%emt 0:02:19]} 21. Qa2 {[%emt 0:01:19]} Be6 {[%emt 0:00:58]} 22. Qb1 {[%emt 0:00:25]} Nxd2 {[%emt 0:03:25]} 23. Nxd2 {[%emt 0:00:01]} Be5 {[%emt 0:00:24]} 24. Nb3 {[%emt 0:06:17]} Qe7 {[%emt 0:03:50]} 25. Red1 {[%emt 0:03:16]} Red8 {[%emt 0:00:08]} 26. Nd4 {[%emt 0:00:55]} Bxd4 {[%emt 0:02:15]} 27. Bxd4 {[%emt 0:00:08]} Rd7 {[%emt 0:01:19]} 28. Rd2 {[%emt 0:01:14]} Rcd8 {[%emt 0:01:34]} 29. Qb2 {[%emt 0:06:09]} Qf7 {[%emt 0:00:24]} 30. h3 {[%emt 0:00:11]} h5 {[%emt 0:00:17]} 31. Rcd1 {[%emt 0:00:39]} Rc8 {[%emt 0:01:17]} 32. Kh2 {[%emt 0:02:13]} Ne7 {[%emt 0:01:00]} 33. Bc5 {[%emt 0:00:05]} Ng6 {[%emt 0:00:43]} 34. e4 {[%emt 0:01:41]} dxe4 {[%emt 0:00:14]} 35. Bxe4 {[%emt 0:00:26]} Rxd2 {[%emt 0:01:04]} 36. Rxd2 {[%emt 0:01:02]} Ne5 {[%emt 0:00:28]} 37. Qd4 {[%emt 0:01:27]} Re8 {[%emt 0:00:27]} 38. Bg2 {[%emt 0:00:21]} Ng6 {[%emt 0:01:03]} 39. Re2 {[%emt 0:00:33]} h4 {[%emt 0:00:46]} 40. gxh4 {[%emt 0:01:45]} Ne5 {[%emt 0:00:24]} 41. Bd6 {[%emt 0:01:29]} Qh5 {[%emt 0:01:46]} 42. Re3 {[%emt 0:00:33]} Nf7 {[%emt 0:00:35]} 43. Bg3 {[%emt 0:00:04]} Qf5 {[%emt 0:00:18]} 44. Qb6 {[%emt 0:00:33]} Re7 {[%emt 0:00:43]} 45. Qc5 {[%emt 0:00:22]} Qxc5 46. bxc5 {[%emt 0:00:01]} Nd8 {[%emt 0:00:28]} 47. Bd6 {[%emt 0:00:44]} Rd7 {[%emt 0:00:13]} 48. Re4 {[%emt 0:01:28]} Kf7 {[%emt 0:01:23]} 49. Rb4 {[%emt 0:00:11]} g6 {[%emt 0:00:28]} 50. Kg3 {[%emt 0:00:27]} Nc6 {[%emt 0:00:31]} 51. Rb6 {[%emt 0:00:28]} Na5 {[%emt 0:00:16]} 52. Bf3 {[%emt 0:00:10]} Bc4 {[%emt 0:00:42]} 53. h5 {[%emt 0:00:25]} gxh5 {[%emt 0:00:21]} 54. Bxh5+ {[%emt 0:00:02]} Kg7 {[%emt 0:00:04]} 55. Bg4 {[%emt 0:00:31]} Rf7 {[%emt 0:00:06]} 56. Rb4 {[%emt 0:00:26]} Bd5 {[%emt 0:00:53]} 57. Rd4 {[%emt 0:00:20]} Bb3 {[%emt 0:00:22]} 58. Bh5 {[%emt 0:01:19]} Rd7 {[%emt 0:00:45]} 59. Bf8+ {[%emt 0:00:16]} 1-0

[Event "XX Gran Hotel Bali-A 2023"]
[Site "Benidorm"]
[Date "2023.12.06"]
[Round "7.17"]
[White "Pardo Ruiz, Carlos"]
[Black "De La Puerta Cresis, Javier"]
[Result "0-1"]
[ECO "B64"]
[WhiteElo "2042"]
[BlackElo "2181"]
[Annotator "ChessBase"]
[PlyCount "78"]
[EventDate "2023.12.02"]
[EventType "swiss"]
[EventCountry "ESP"]
[SourceTitle "playchess.com"]
[Source "ChessBase"]
[SourceQuality "1"]
[TimeControl "5400+30"]

1. e4 {[%emt 0:00:05]} c5 {[%emt 0:00:04]} 2. Nf3 {[%emt 0:00:23]} d6 {[%emt 0:00:06]} 3. d4 {[%emt 0:00:20]} cxd4 {[%emt 0:00:05]} 4. Nxd4 {[%emt 0:00:20]} Nf6 {[%emt 0:00:07]} 5. Nc3 {[%emt 0:00:18]} Nc6 {[%emt 0:00:07]} 6. Bg5 {[%emt 0:00:52]} e6 {[%emt 0:00:06]} 7. Qd2 {[%emt 0:00:25]} Be7 {[%emt 0:00:09]} 8. O-O-O {[%emt 0:00:47]} O-O {[%emt 0:00:08]} 9. f4 {[%emt 0:01:30]} h6 {[%emt 0:00:29]} 10. Bh4 {[%emt 0:03:38]} Bd7 {[%emt 0:02:17]} 11. Ndb5 {[%emt 0:04:34]} d5 {[%emt 0:01:24]} 12. Bxf6 {[%emt 0:08:06]} Bxf6 {[%emt 0:00:17]} 13. exd5 {[%emt 0:00:22]} Nb4 {[%emt 0:06:18]} 14. a3 {[%emt 0:06:46]} Nxd5 {[%emt 0:09:27]} 15. Nxd5 {[%emt 0:02:38]} exd5 {[%emt 0:00:01]} 16. Nd4 {[%emt 0:02:01]} Qb6 {[%emt 0:05:20]} 17. Qb4 {[%emt 0:05:53]} Qc7 {[%emt 0:01:58]} 18. g3 {[%emt 0:07:47]} Rfc8 {[%emt 0:03:54]} 19. Rd2 {[%emt 0:02:07]} b5 {[%emt 0:06:35]} 20. Qb3 {[%emt 0:04:39]} Rab8 {[%emt 0:07:42]} 21. Kb1 {[%emt 0:06:31]} a5 {[%emt 0:03:15]} 22. Be2 {[%emt 0:10:53]} a4 {[%emt 0:03:56]} 23. Qb4 {[%emt 0:01:03]} Qd8 {[%emt 0:02:32]} 24. Qd6 {[%emt 0:05:17]} b4 {[%emt 0:02:57]} 25. axb4 {[%emt 0:02:21]} Be7 {[%emt 0:02:01]} 26. Qxd5 {[%emt 0:01:00]} Bxb4 {[%emt 0:00:45]} 27. Rd3 {[%emt 0:01:56]} Qc7 {[%emt 0:02:56]} 28. c4 {[%emt 0:02:58]} Rd8 {[%emt 0:12:41]} 29. Rc1 {[%emt 0:02:44]} Bc5 {[%emt 0:01:02]} 30. Nf5 {[%emt 0:02:04]} a3 {[%emt 0:03:46]} 31. b3 {[%emt 0:05:01]} Be6 {[%emt 0:02:12]} 32. Qe4 {[%emt 0:00:08]} Rxd3 {[%emt 0:02:12]} 33. Bxd3 {[%emt 0:00:40]} Rxb3+ {[%emt 0:00:57]} 34. Ka2 {[%emt 0:00:49]} Rb2+ {[%emt 0:01:04]} 35. Ka1 {[%emt 0:00:01]} Bxf5 {[%emt 0:03:01]} 36. Qxf5 {[%emt 0:00:45]} Bd4 {[%emt 0:03:22]} 37. Qh7+ {[%emt 0:02:21]} Kf8 {[%emt 0:00:01]} 38. Qh8+ {[%emt 0:00:05]} Ke7 {[%emt 0:00:05]} 39. Re1+ {[%emt 0:02:51]} Re2+ {[%emt 0:00:10]} 0-1

[Event "XX Gran Hotel Bali-A 2023"]
[Site "Benidorm"]
[Date "2023.12.06"]
[Round "7.18"]
[White "Motos Abellan, Daniel"]
[Black "Patil Priyanshu"]
[Result "1/2-1/2"]
[ECO "E60"]
[WhiteElo "2151"]
[BlackElo "1902"]
[Annotator "RC"]
[PlyCount "26"]
[EventDate "2023.12.02"]
[EventType "swiss"]
[EventCountry "ESP"]
[SourceTitle "playchess.com"]
[Source "ChessBase"]
[SourceQuality "1"]
[TimeControl "5400+30"]

1. Nf3 {[%emt 0:00:02]} c5 {[%emt 0:00:15]} 2. e3 {[%emt 0:00:04]} d5 {[%emt 0:01:08]} 3. b3 {[%emt 0:00:35]} Nf6 {[%emt 0:00:20]} 4. Bb2 {[%emt 0:00:03]} g6 {[%emt 0:00:07]} 5. c4 {[%emt 0:00:41]} dxc4 {[%emt 0:00:32]} 6. Bxc4 {[%emt 0:01:17]} Bg7 {[%emt 0:00:18]} 7. O-O {[%emt 0:00:19]} O-O {[%emt 0:00:20]} 8. d4 {[%emt 0:01:20]} cxd4 {[%emt 0:00:12]} 9. Nxd4 {[%emt 0:00:39]} a6 {[%emt 0:00:05]} 10. Be2 {[%emt 0:01:50]} Bd7 {[%emt 0:15:20]} 11. Nd2 {[%emt 0:01:53]} Nc6 {[%emt 0:01:11]} 12. Nxc6 {[%emt 0:03:02]} Bxc6 {[%emt 0:00:03]} 13. Bf3 {[%emt 0:00:14]} Bxf3 {[%emt 0:04:37]} 1/2-1/2

[Event "XX Gran Hotel Bali-A 2023"]
[Site "Benidorm"]
[Date "2023.12.06"]
[Round "7.19"]
[White "Arce Gonzalez, Dario"]
[Black "Aakash Sharadchandra, Dalvi"]
[Result "0-1"]
[ECO "E14"]
[WhiteElo "2038"]
[BlackElo "2114"]
[Annotator "ChessBase"]
[PlyCount "88"]
[EventDate "2023.12.02"]
[EventType "swiss"]
[EventCountry "ESP"]
[SourceTitle "playchess.com"]
[Source "ChessBase"]
[SourceQuality "1"]
[TimeControl "5400+30"]

1. c4 {[%emt 0:00:02]} e6 {[%emt 0:03:58]} 2. Nf3 {[%emt 0:00:16]} d5 {[%emt 0:00:14]} 3. e3 {[%emt 0:00:08]} Nf6 {[%emt 0:00:48]} 4. Nc3 {[%emt 0:01:10]} Be7 {[%emt 0:01:09]} 5. b3 {[%emt 0:00:24]} O-O {[%emt 0:01:16]} 6. Bb2 {[%emt 0:00:12]} c5 {[%emt 0:02:15]} 7. cxd5 {[%emt 0:00:53]} exd5 {[%emt 0:00:30]} 8. d4 {[%emt 0:00:15]} b6 {[%emt 0:00:21]} 9. Be2 {[%emt 0:03:54]} Bb7 {[%emt 0:00:22]} 10. O-O {[%emt 0:00:42]} Nbd7 {[%emt 0:01:11]} 11. Rc1 {[%emt 0:05:26]} Rc8 {[%emt 0:02:58]} 12. h3 {[%emt 0:10:13]} Bd6 {[%emt 0:02:23]} 13. dxc5 {[%emt 0:03:51]} bxc5 {[%emt 0:04:28]} 14. Na4 {[%emt 0:02:08]} Qe7 {[%emt 0:00:53]} 15. Qc2 {[%emt 0:06:48]} Nb6 {[%emt 0:05:32]} 16. Nc3 {[%emt 0:00:47]} d4 {[%emt 0:01:08]} 17. Nd1 {[%emt 0:02:04]} Nbd5 {[%emt 0:05:28]} 18. Qd3 {[%emt 0:14:21]} Nb4 {[%emt 0:06:40]} 19. Qc4 {[%emt 0:04:34]} Ba6 {[%emt 0:00:47]} 20. Qxa6 {[%emt 0:00:07]} Nxa6 {[%emt 0:00:05]} 21. Bxa6 {[%emt 0:00:04]} Rc6 {[%emt 0:04:04]} 22. Bd3 {[%emt 0:02:25]} Rcc8 {[%emt 0:06:24]} 23. Ba6 {[%emt 0:02:41]} Rcd8 {[%emt 0:01:29]} 24. exd4 {[%emt 0:01:07]} cxd4 {[%emt 0:00:33]} 25. Re1 {[%emt 0:02:13]} Qd7 {[%emt 0:00:11]} 26. Nxd4 {[%emt 0:01:27]} Bf4 {[%emt 0:11:54]} 27. Ne3 {[%emt 0:03:09]} Qd6 {[%emt 0:03:29]} 28. Bf1 {[%emt 0:03:55]} Rfe8 {[%emt 0:06:32]} 29. Ndf5 {[%emt 0:11:36]} Qb6 {[%emt 0:03:01]} 30. Rcd1 {[%emt 0:05:33]} Rxd1 {[%emt 0:03:01]} 31. Rxd1 {[%emt 0:00:11]} Bxe3 {[%emt 0:11:12]} 32. Nxe3 {[%emt 0:00:44]} Ne4 {[%emt 0:01:03]} 33. Bd4 {[%emt 0:00:48]} Qa5 {[%emt 0:00:14]} 34. Bc4 {[%emt 0:10:20]} Rd8 {[%emt 0:00:48]} 35. Be2 {[%emt 0:02:43]} Qxa2 {[%emt 0:02:07]} 36. Bf3 {[%emt 0:00:31]} Nd2 {[%emt 0:06:04]} 37. Ra1 {[%emt 0:00:35]} Qxb3 {[%emt 0:00:52]} 38. Rxa7 {[%emt 0:00:18]} Qb1+ {[%emt 0:00:30]} 39. Bd1 {[%emt 0:00:07]} Qd3 {[%emt 0:02:05]} 40. Bb6 {[%emt 0:00:42]} Re8 {[%emt 0:00:14]} 41. Ba4 {[%emt 0:00:21]} Qb1+ {[%emt 0:00:13]} 42. Kh2 {[%emt 0:00:12]} Qxb6 {[%emt 0:00:09]} 43. Bxe8 {[%emt 0:00:10]} Qxa7 {[%emt 0:00:06]} 44. Bc6 {[%emt 0:00:04]} Qc7+ {[%emt 0:00:06]} 0-1

[Event "XX Gran Hotel Bali-A 2023"]
[Site "Benidorm"]
[Date "2023.12.06"]
[Round "7.20"]
[White "Midoux, Sebastien"]
[Black "Decuigniere, Tom"]
[Result "0-1"]
[ECO "B12"]
[WhiteElo "2151"]
[BlackElo "2408"]
[Annotator "RC"]
[PlyCount "40"]
[EventDate "2023.12.02"]
[EventType "swiss"]
[EventCountry "ESP"]
[SourceTitle "playchess.com"]
[Source "ChessBase"]
[SourceQuality "1"]
[TimeControl "5400+30"]

1. e4 {[%emt 0:00:04]} c6 {[%emt 0:00:08]} 2. d4 {[%emt 0:00:10]} d5 {[%emt 0:00:06]} 3. e5 {[%emt 0:00:06]} Bf5 {[%emt 0:00:11]} 4. h4 {[%emt 0:00:08]} h6 {[%emt 0:01:17]} 5. g4 {[%emt 0:00:57]} Be4 {[%emt 0:01:13]} 6. f3 {[%emt 0:00:41]} Bh7 {[%emt 0:00:25]} 7. e6 {[%emt 0:00:46]} Nf6 {[%emt 0:02:18]} 8. Bd3 {[%emt 0:02:46]} Qd6 {[%emt 0:03:27]} 9. exf7+ {[%emt 0:03:53]} Kxf7 {[%emt 0:00:05]} 10. Bxh7 {[%emt 0:02:55]} Rxh7 {[%emt 0:02:21]} 11. Nh3 {[%emt 0:12:58]} Nbd7 {[%emt 0:15:28]} 12. g5 {[%emt 0:08:41]} Nh5 {[%emt 0:05:07]} 13. f4 {[%emt 0:01:24]} Ng3 {[%emt 0:01:46]} 14. Rh2 {[%emt 0:09:53]} g6 {[%emt 0:07:14]} 15. f5 {[%emt 0:15:31]} Nxf5 {[%emt 0:02:50]} 16. Bf4 {[%emt 0:00:08]} e5 {[%emt 0:00:30]} 17. dxe5 {[%emt 0:00:18]} Nxe5 {[%emt 0:02:58]} 18. Nc3 {[%emt 0:03:15]} Re8 {[%emt 0:00:42]} 19. Kf1 {[%emt 0:00:25]} Kg8 {[%emt 0:02:12]} 20. h5 {[%emt 0:03:38]} Rf7 {[%emt 0:04:07]} 0-1